{"text_format":"1","workbook":"xlsx","n_sheets":6,"sheets":["Blank","Start","Key","Description","Glossary","Print_Version"],"not_rendered":{"charts":0,"images":13,"macros":1,"external_links":0,"defined_names":0,"comments":0,"pivot_tables":0},"unopened":[],"bounds":{"document_bytes":16777216,"sheet_cells":100000,"rows_first":2000,"rows_last":500,"rows_between":2000,"halvings":0,"cell_chars":16384,"cell_head_chars":4096},"cells_cut":0,"cells_raw":0,"read":"whole","date_system":"1900"}

{"sheet":"Blank","index":0,"n_rows":340,"n_cols":23,"rows_kept":340,"cut":false,"hidden":true,"merged":[[286,0,286,8],[319,0,319,8],[205,0,205,8],[186,0,186,8],[0,0,0,22],[2,0,2,8],[33,0,33,8],[102,0,102,8],[159,0,159,8]]}
["Home Buyers Checklist - KFW Housing"]
[]
["General information"]
[]
["What type is the regarding household?"]
[]
[null,null,"House",null,null,null,null,null,"Apartment"]
[]
["Where is the regarding household located?"]
[]
["How big is the living area?",null,null,null,null,null,null,null,null,null,null,null,"m²"]
[]
["How old is the household?"]
[]
[null,null,"< 1 year",null,null,null,null,null,"1 to 5 years",null,null,null,null,null,"5 to 10 years"]
[]
[null,null,"10 to 20 years",null,null,null,null,null,"20 to 30 years",null,null,null,null,null,"30 to 50 years"]
[]
[null,null,"Other:",null,null,null,null,null,"years"]
[]
["How many persons live in the household?",null,null,null,null,null,null,null,null,null,null,null,null,null,null,"Persons"]
[]
["How many weeks of the year, the home remains unused?",null,null,null,null,null,null,null,null,null,null,null,null,null,null,null,null,null,null,"weeks per year"]
[]
["Have any energy efficiency improvements been made? Please check the relevant boxes."]
[]
[null,null,"Windows",null,null,null,null,null,"Doors",null,null,null,null,null,"Heating"]
[]
[null,null,"Air Conditioning",null,null,null,null,null,"Ligthing",null,null,null,null,null,"Insulation"]
[]
[null,null,"Other:"]
[]
[]
["Heating"]
[]
["What type of heat source is used?"]
[]
[null,null,"Gas boiler",null,null,null,null,null,null,null,null,"Age of the boiler:",null,null,null,null,null,null,null,null,null,"years"]
[]
[null,null,null,null,null,"Condensing boiler (Effeciency ratio over 93 %)"]
[]
[null,null,null,null,null,"Near condensing boiler (Effeciency ratio 90 to 93 %)"]
[]
[null,null,null,null,null,"Non condensing boiler (Effeciency ratio below 87 %)"]
[]
[null,null,null,null,null,"Do not know the type"]
[]
[null,null,"Oil boiler",null,null,null,null,null,null,null,null,"Age of the boiler:",null,null,null,null,null,null,null,null,null,"years"]
[]
[null,null,null,null,null,"Condensing boiler (Effeciency ratio over 93 %)"]
[]
[null,null,null,null,null,"Near condensing boiler (Effeciency ratio 90 to 93 %)"]
[]
[null,null,null,null,null,"Non condensing boiler (Effeciency ratio below 87 %)"]
[]
[null,null,null,null,null,"Do not know the type"]
[]
[null,null,"Biomass boiler",null,null,null,null,null,null,null,null,"Age of the boiler:",null,null,null,null,null,null,null,null,null,"years"]
[]
[null,null,null,null,null,"Condensing boiler (Effeciency ratio over 93 %)"]
[]
[null,null,null,null,null,"Near condensing boiler (Effeciency ratio 90 to 93 %)"]
[]
[null,null,null,null,null,"Non condensing boiler (Effeciency ratio below 87 %)"]
[]
[null,null,null,null,null,"Do not know the type"]
[]
[null,null,"Heat pump",null,null,null,null,null,null,null,null,"Age of the heat pump:",null,null,null,null,null,null,null,null,null,"years"]
[]
[null,null,null,null,null,"Air/Water (Usage of air the external air via an external unit)"]
[]
[null,null,null,null,null,"Brine/Water (Usage of geothermal energy via earth collector / earth probe)"]
[]
[null,null,null,null,null,"Water/Water (Usage of ground water via well)"]
[]
[null,null,"District heating"]
[]
[null,null,"Solar thermal"]
[]
[null,null,"Other:"]
[]
["How is the control of the heating system realised?"]
[]
[null,null,"Programmable thermostat",null,null,null,null,null,null,null,null,null,null,null,"Manual valves"]
[]
[null,null,"Thermostatic valves"]
[]
["Are the pipes of the heating system insulated?"]
[]
[null,null,"Completely",null,null,null,null,null,null,null,null,null,null,null,"Partly"]
[]
[null,null,"No"]
[]
["How many circulating pumps are used by the heating system?",null,null,null,null,null,null,null,null,null,null,null,null,null,null,null,null,null,null,null,"pumps"]
[]
["How old are the circulating pumps of the heating system?"]
[]
[null,null,"< 1 year",null,null,null,null,null,"1 to 5 years",null,null,null,null,null,"5 to 10 years"]
[]
[null,null,"10 to 20 years",null,null,null,null,null,"20 to 30 years",null,null,null,null,null,"Other:",null,null,null,null,null,"years"]
[]
[]
["Domestic hot water (DHW)"]
[]
["Is the heat source for DHW the same as for heating?"]
[]
[null,null,"Yes",null,null,null,null,null,null,null,null,null,null,null,"No"]
[]
["If you checked \"No\" above: What type of heat source is used for DHW?"]
[]
[null,null,"Gas boiler",null,null,null,null,null,null,null,null,"Age of the boiler:",null,null,null,null,null,null,null,null,null,"years"]
[]
[null,null,null,null,null,"Condensing boiler (Effeciency ratio over 93 %)"]
[]
[null,null,null,null,null,"Near condensing boiler (Effeciency ratio 90 to 93 %)"]
[]
[null,null,null,null,null,"Non condensing boiler (Effeciency ratio below 87 %)"]
[]
[null,null,null,null,null,"Do not know the type"]
[]
[null,null,"Oil boiler",null,null,null,null,null,null,null,null,"Age of the boiler:",null,null,null,null,null,null,null,null,null,"years"]
[]
[null,null,null,null,null,"Condensing boiler (Effeciency ratio over 93 %)"]
[]
[null,null,null,null,null,"Near condensing boiler (Effeciency ratio 90 to 93 %)"]
[]
[null,null,null,null,null,"Non condensing boiler (Effeciency ratio below 87 %)"]
[]
[null,null,null,null,null,"Do not know the type"]
[]
[null,null,"Biomass boiler",null,null,null,null,null,null,null,null,"Age of the boiler:",null,null,null,null,null,null,null,null,null,"years"]
[]
[null,null,null,null,null,"Condensing boiler (Effeciency ratio over 93 %)"]
[]
[null,null,null,null,null,"Near condensing boiler (Effeciency ratio 90 to 93 %)"]
[]
[null,null,null,null,null,"Non condensing boiler (Effeciency ratio below 87 %)"]
[]
[null,null,null,null,null,"Do not know the type"]
[]
[null,null,"Heat pump",null,null,null,null,null,null,null,null,"Age of the heat pump:",null,null,null,null,null,null,null,null,null,"years"]
[]
[null,null,null,null,null,"Air/Water (Usage of air the external air via an external unit)"]
[]
[null,null,null,null,null,"Brine/Water (Usage of geothermal energy via earth collector / earth probe)"]
[]
[null,null,null,null,null,"Water/Water (Usage of ground water via well)"]
[]
[null,null,"Gas flow heater",null,null,null,null,null,null,null,null,"Age of the heater:",null,null,null,null,null,null,null,null,null,"years"]
[]
[null,null,"Electrical flow heater",null,null,null,null,null,null,null,null,"Age of the heater:",null,null,null,null,null,null,null,null,null,"years"]
[]
[null,null,"District heating"]
[]
[null,null,"Solar thermal"]
[]
[null,null,"Other:"]
[]
[]
["Renewable energy technologies"]
[]
["Is solar thermal energy used?"]
[]
[null,null,"Yes",null,null,null,null,null,null,null,null,null,null,null,"No"]
[]
["If you checked \"Yes\" above: What type of collector is used?"]
[]
[null,null,"Flat collector",null,null,null,null,null,null,null,null,null,null,null,"Tube collector"]
[]
[null,null,"Swimming pool absorbers"]
[]
["If you checked \"Yes\" above: How big is the surface of the collectors?",null,null,null,null,null,null,null,null,null,null,null,null,null,null,null,null,null,null,null,null,null,"m²"]
[]
["Is photovoltaics used?"]
[]
[null,null,"Yes",null,null,null,null,null,null,null,null,null,null,null,"No"]
[]
["If you checked \"Yes\" above: How is the energy from the PV-system used?"]
[]
[null,null,"Own use",null,null,null,null,null,null,null,null,null,null,null,"Grid feed"]
[]
[null,null,"Overflow feed"]
[]
["If you checked \"Yes\" above: How big is the surface of the collectors?",null,null,null,null,null,null,null,null,null,null,null,null,null,null,null,null,null,null,null,null,null,"m²"]
[]
[]
["Lighting"]
[]
["What type of lamps are used?"]
[]
[null,null,"Light bulbs",null,null,null,null,null,null,null,null,null,null,null,"Halogen lamps"]
[]
[null,null,"LED",null,null,null,null,null,null,null,null,null,null,null,"Other:"]
[]
["How many lamps are installed?",null,null,null,null,null,null,null,null,null,null,null,null,"lamps"]
[]
["How much is the power of one lamp?",null,null,null,null,null,null,null,null,null,null,null,null,null,"Watts"]
[]
["How is the control of the lighting realised?"]
[]
[null,null,"Presence sensors",null,null,null,null,null,null,null,null,null,null,null,"Manual switches"]
[]
[null,null,"Other:"]
[]
[]
["Household appliances"]
[]
["Which of these household appliances are used in the home? (Do also name their age, quantitiy and types as requested)"]
[]
[null,null,"Fridge",null,null,null,null,null,null,null,null,"Age of the appliance:",null,null,null,null,null,null,null,null,null,"years"]
[]
[null,null,null,null,null,null,null,null,null,null,null,"Number of applicances:"]
[]
[null,null,null,null,null,"Small fridge (under 200 liter)"]
[]
[null,null,null,null,null,"Big fridge (over 200 liter)"]
[]
[null,null,"Freezer",null,null,null,null,null,null,null,null,"Age of the appliance:",null,null,null,null,null,null,null,null,null,"years"]
[]
[null,null,null,null,null,null,null,null,null,null,null,"Number of applicances:"]
[]
[null,null,null,null,null,"Small freezer (under 200 liter)"]
[]
[null,null,null,null,null,"Big freezer (over 200 liter)"]
[]
[null,null,"Fridge-freezer",null,null,null,null,null,null,null,null,"Age of the appliance:",null,null,null,null,null,null,null,null,null,"years"]
[]
[null,null,null,null,null,null,null,null,null,null,null,"Number of applicances:"]
[]
[null,null,null,null,null,"Small fridge-freezer (under 200 liter)"]
[]
[null,null,null,null,null,"Big fridge-freezer (over 200 liter)"]
[]
[null,null,"Cooling unit",null,null,null,null,null,null,null,null,"Age of the appliance:",null,null,null,null,null,null,null,null,null,"years"]
[]
[null,null,null,null,null,null,null,null,null,null,null,"Number of applicances:"]
[]
[null,null,null,null,null,"Monoblock unit (exhaust hose through open window or door)"]
[]
[null,null,null,null,null,"Split-unit (internal and external unit)"]
[]
[null,null,"Washing machine",null,null,null,null,null,null,null,null,"Age of the appliance:",null,null,null,null,null,null,null,null,null,"years"]
[]
[null,null,null,null,null,null,null,null,null,null,null,"Number of applicances:"]
[]
[null,null,"Dryer",null,null,null,null,null,null,null,null,"Age of the appliance:",null,null,null,null,null,null,null,null,null,"years"]
[]
[null,null,null,null,null,null,null,null,null,null,null,"Number of applicances:"]
[]
[null,null,null,null,null,"Gas"]
[]
[null,null,null,null,null,"Electrical"]
[]
[null,null,"Oven",null,null,null,null,null,null,null,null,"Age of the appliance:",null,null,null,null,null,null,null,null,null,"years"]
[]
[null,null,null,null,null,null,null,null,null,null,null,"Number of applicances:"]
[]
[null,null,null,null,null,"Gas"]
[]
[null,null,null,null,null,"Electrical"]
[]
[null,null,"TV",null,null,null,null,null,null,null,null,"Age of the appliance:",null,null,null,null,null,null,null,null,null,"years"]
[]
[null,null,null,null,null,null,null,null,null,null,null,"Number of applicances:"]
[]
[null,null,null,null,null,"Tube"]
[]
[null,null,null,null,null,"LCD"]
[]
[null,null,null,null,null,"LED"]
[]
[null,null,null,null,null,"Other:"]
[]
[null,null,"Entertainment electronics",null,null,null,null,null,null,null,null,"Age of the appliance:",null,null,null,null,null,null,null,null,null,"years"]
[]
[null,null,null,null,null,null,null,null,null,null,null,"Number of applicances:"]
[]
[null,null,null,null,null,"VCR"]
[]
[null,null,null,null,null,"DVD/Bluray-Player"]
[]
[null,null,null,null,null,"Game consol"]
[]
[null,null,null,null,null,"Other:"]
[]
[]
["Windows and external doors"]
[]
["Are the windowframes sealed and free of air leakage? (Check with your hand if any air comes in, when the window is closed)"]
[]
[null,null,"Yes",null,null,null,null,null,null,null,null,null,null,null,"No"]
[]
["Are the external doorframes sealed and free of air leakage? (Check with your hand if any air comes in, when the door is closed)"]
[]
[null,null,"Yes",null,null,null,null,null,null,null,null,null,null,null,"No"]
[]
["Are doubleglazing windows installed? (Can you see two layers of glass in one window frame?)"]
[]
[null,null,"Yes",null,null,null,null,null,null,null,null,null,null,null,"No"]
[]
["Are the window frames of good quality? "]
[]
[null,null,"Yes",null,null,null,null,null,null,null,null,null,null,null,"No"]
[]
["What material are the window frames made of?"]
[]
[null,null,"Wood",null,null,null,null,null,null,null,null,null,null,null,"PVC"]
[]
[null,null,"Other:"]
[]
["Please insert the R-value/R-factor of the used windows. (Ask your home inspector or look into the data sheet of the windows.) "]
[]
[null,null,null,null,null,null,"[W/m²K]"]
[]
["Please insert the R-value/R-factor of the used external doors. (Ask your home inspector or look into the data sheet of the doors.) "]
[]
[null,null,null,null,null,null,"[W/m²K]"]
[]
[]
["Insulation"]
[]
["Is there any thermal insulation on the external walls of the building? (Ask your home inspector.)"]
[]
[null,null,"Yes",null,null,null,null,null,null,null,null,null,null,null,"No"]
[]
["How thick is the thermal insulation on the external walls of the building? (Ask your home inspector.)"]
[]
[null,null,null,null,null,null,"[cm]"]
[]
["Please insert the R-value/R-factor of the external wall insulation. (Ask your home inspector or look into the data sheet of the insulation.) "]
[]
[null,null,null,null,null,null,"[W/m²K]"]
[]
["Are there proper amounts of insulation in the roof and attic? (Ask your home inspector.)"]
[]
[null,null,"Yes",null,null,null,null,null,null,null,null,null,null,null,"No"]
[]
["Please insert the R-value/R-factor of the roof/attic. (Ask your home inspector or look into the data sheet of the insulation.) "]
[]
[null,null,null,null,null,null,"[W/m²K]"]

{"sheet":"Start","index":1,"n_rows":7,"n_cols":1,"rows_kept":7,"cut":false,"hidden":false,"merged":[]}
["ԱԶԳԱՅԻՆ ՀԻՓՈԹԵՔԱՅԻՆ ԸՆԿԵՐՈՒԹՅՈՒՆ"]
[]
["ԲՆԱԿԱՐԱՆԱՅԻՆ ՖԻՆԱՆՍԱՎՈՐՄԱՆ ԾՐԱԳԻՐ, ՉՈՐՐՈՐԴ ՓՈՒԼ"]
[]
["ԱՌԿԱ ԲՆԱԿԱՐԱՆԻ/ՏԱՆ ԷԱ ԳՆԱՀԱՏՄԱՆ ՀԱՐՑԱԹԵՐԹԻԿ (ԷԱ ԲՆԱԿԱՐԱՆԻ/ՏԱՆ ՁԵՌՔ ԲԵՐՄԱՆ ՎԱՐԿԱՏԵՍԱԿ)"]
[]
["ՈՒՇԱԴՐՈՒԹՅՈՒՆ. ԱՇԽԱՏԱՆՔԸ ՍԿՍԵԼՈՒ ԱՌԱՋ ՀԱՎԱՍՏՎԵՔ, ՈՐ ԷՔՍԵԼ-ի ՄԱԿՐՈՍ ՖՈՒՆԿՑԻԱՆ ԹՈՒՅԼԱՏՐՎԱԾ Է !!!"]

{"sheet":"Key","index":2,"n_rows":233,"n_cols":29,"rows_kept":233,"cut":false,"hidden":false,"merged":[[196,0,196,18],[203,0,203,18],[212,1,212,4],[230,1,230,4],[232,0,233,13],[232,14,233,18],[194,1,194,4],[67,13,67,16],[75,13,75,16],[77,13,77,16],[95,0,96,18],[100,0,100,18],[109,13,109,16],[119,13,119,16],[121,0,121,18],[128,0,128,18],[169,0,169,18],[189,16,189,18],[11,6,11,16],[13,0,13,18],[18,13,18,17],[20,13,20,17],[22,8,22,11],[28,15,28,16],[38,0,38,18],[45,0,48,18],[50,13,50,16],[58,13,58,16],[36,6,36,17],[9,6,9,16],[0,0,0,18],[1,0,1,18],[3,6,3,16],[5,6,5,16],[7,6,7,16]]}
["Ձեռք բերվող բնակարանի/տան ԷԱ գնահատման հարցաթերթիկ"]
["Անձնական տեղեկություններ"]
[]
["Դիմորդի անուն, ազգանուն",null,null,null,null,null,"Mher"]
[]
["Բնակության/գրանցման հասցե",null,null,null,null,null,"nikol"]
[]
["Քաղաք/բնակավայր",null,null,null,null,null,"yerevan"]
[]
["Էլ փոստի հասցե",null,null,null,null,null,"myedigaryan"]
[]
["Հեռախոս",null,null,null,null,null,91332688]
[]
["Ընդհանուր տեղեկություններ ֆինանսավորվող գույքի վերաբերյալ",null,null,null,null,null,null,null,null,null,null,null,null,null,null,null,null,null,null,null,null,null,"Minimum",null,null,null,null,null,"Maximum"]
["Բնակելի անշարժ գույքի տեսակը"]
[]
[null,null,null,null,null,null,null,null,null,null,null,null,null,null,null,null,null,null,null,null,null,2,0,null,null,null,null,null,0]
[]
["Անշարժ գույքի հասցեն",null,null,null,null,null,null,null,null,null,null,null,null,"nikol"]
[]
["Անշարժ գույքի գտնվելու վայրւը (քաղաք/բնակավայր)",null,null,null,null,null,null,null,null,null,null,null,null,"yerevan"]
[]
["Անշարժ գույքի ընդհանուր մակերեսը",null,null,null,null,null,null,null,125,null,null,null,"ք. մ."]
[]
["Անշարժ գույքի կառուցման ժամկետը"]
[]
[null,null,null,null,null,null,null,null,null,null,null,null,null,null,null,null,null,null,null,null,null,2,0,null,null,{"$f":"IF(V27=1,4,IF(V27=2,2,IF(V27=3,0,0)))","v":2},null,null,4]
[]
["Տարվա ընթացքում բնակարանում/տանը բնակվո անձանց միջին քանակաը",null,null,null,null,null,null,null,null,null,null,null,null,null,null,5,null,"հոգի"]
[]
["Ինչպիսի էներգախնոյողության բարելավման միջոցառումներ են իրականացվել վերջին 5 տարվա ընթացքում? ",null,null,null,null,null,null,null,null,null,null,null,null,null,null,null,null,null,null,null,null,true,0,null,null,{"$f":"IF(V31=TRUE,1,0)+IF(V32=TRUE,1,0)+IF(V33=TRUE,1,0)+IF(V34=TRUE,1,0)+IF(V35=TRUE,1,0)+IF(V36=TRUE,1,0)+IF(V37=TRUE,1,0)","v":7},null,null,6]
["Խնդրում ենք ընտրեք համապատասխանP վանդակները",null,null,null,null,null,null,null,null,null,null,null,null,null,null,null,null,null,null,null,null,true]
[null,null,null,null,null,null,null,null,null,null,null,null,null,null,null,null,null,null,null,null,null,true]
[null,null,null,null,null,null,null,null,null,null,null,null,null,null,null,null,null,null,null,null,null,true]
[null,null,null,null,null,null,null,null,null,null,null,null,null,null,null,null,null,null,null,null,null,true]
[null,null,null,null,null,null,null,null,null,null,null,null,null,null,null,null,null,null,null,null,null,true]
[null,null,null,null,null,null,null,null,null,null,null,null,null,null,null,null,null,null,null,null,null,true]
[]
["Բաժին 1. Ջեռուցում և տաք ջրամատակարարում",null,null,null,null,null,null,null,null,null,null,null,null,null,null,null,null,null,null,null,null,null,-3,null,null,{"$f":"IF(V42\n=1,2,0)","v":2},null,null,6]
["Արդյոք ջեռուցման և տաք ջրամատակարարման համար օգտագործվում է նույն համակարգը?"]
[]
[null,null,null,null,null,null,null,null,null,null,null,null,null,null,null,null,null,null,null,null,null,1]
[]
["Ջեռուցման համակարգի ինչպիսի տիպ է օգտագործվում?"]
["(Եթե օգտգործվում են տարբեր տիպի համակարգեր, նշեք բոլորը)"]
["Կաթսայի արտադրության տարեթիվը և տեսակը ճշտելու համար ստուգեք կաթսայի պիտակը կամ տեխնիկական բնութագրերը: Պիտակը սովորաբար փակցված է կաթսայի հետևի մասում: Պիտակի կամ տեխնիակական բնութագրերի բացակայության դեպքում հնարավոր է ստանալ անհրաժեշտ տեղեկատվությունը համացանցից` մուտքագրելով արտադրողի անունը և կաթսայի մոդելը:ան մոդելի տվյալների հիման վրա: "]
[]
[]
[]
[null,null,null,null,null,null,null,null,null,null,null,null,null,null,null,null,null,null,null,null,null,true]
[null,null,null,null,null,null,null,"Կաթսայի տարիքը",null,null,null,null,null,1,null,null,null,"տարի",null,null,null,3,null,null,-1,{"$f":"IF(V50=TRUE,IF(V51=1,1,IF(V51=2,0,IF(V51=3,-1,IF(V51=4,0,0)))),0)+IF(V50=TRUE,IF(AND(N51<=10,N51<>\"\"),1,0),0)","v":0},2]
[]
[null,null,null,1]
[]
[]
[]
[]
[]
[null,null,null,null,null,null,null,"Կաթսայի տարիքը",null,null,null,null,null,null,null,null,null,"տարի",null,null,null,null,null,null,-2,{"$f":"IF(V59=TRUE,IF(V60=1,1,IF(V60=2,0,IF(V60=3,-1,IF(V60=4,0,0)))),0)+IF(V59=TRUE,IF(AND(N59<=10,N59<>\"\"),1,0),0)","v":0},2]
[null,null,null,null,null,null,null,null,null,null,null,null,null,null,null,null,null,null,null,null,null,1]
[]
[]
[]
[]
[]
[]
[]
[null,null,null,null,null,null,null,"Օդատաքացուցիչի տարիքը",null,null,null,null,null,null,null,null,null,"տարի",null,null,null,null,null,null,-1,{"$f":"IF(V68=TRUE,IF(V69=1,1,IF(V69=2,0,IF(V69=3,-1,IF(V69=4,0,0)))),0)++IF(V68=TRUE,IF(AND(N68<=10,N68<>\"\"),1,0),0)","v":0},2]
[null,null,null,null,null,null,null,null,null,null,null,null,null,null,null,null,null,null,null,null,null,2]
[]
[]
[]
[]
[]
[]
[null,true,"Electrical flow heater",null,null,null,null,"Օդատաքացուցիչի տարիքը",null,null,null,null,null,null,null,null,null,"տարի",null,null,null,true,null,null,-1,{"$f":"IF(V76=TRUE,2,0)+IF(V76=TRUE,IF(AND(N76<>\"\",N76<=10),1,0),0)","v":2},0]
[]
[null,null,null,null,null,null,null,"Պոմպի տարիքը",null,null,null,null,null,null,null,null,null,"տարի",null,null,null,true,null,null,0,{"$f":"IF(V78=TRUE,IF(V79=1,1,IF(V79=2,2,IF(V79=3,2,IF(V79=4,0,0)))),0)++IF(V78=TRUE,IF(AND(N78<=10,N78<>\"\"),1,0),0)","v":2},3]
[null,null,null,null,null,null,null,null,null,null,null,null,null,null,null,null,null,null,null,null,null,3]
[]
[]
[]
[]
[]
[null,null,null,null,null,null,null,null,null,null,null,null,null,null,null,null,null,null,null,null,null,true,null,null,0,{"$f":"IF(V85=TRUE,1,0)","v":1},1]
[]
[null,null,null,null,null,null,null,null,null,null,null,null,null,null,null,null,null,null,null,null,null,true,null,null,0,{"$f":"IF(V87=TRUE,2,0)","v":2},2]
[]
[null,null,null,null,null,null,null,null,null,null,null,null,null,null,null,null,null,null,null,null,null,true,null,null,null,{"$f":"IF(V89=TRUE,0,0)","v":0}]
[]
[]
["Ինչպես է կառավարվում ջեռուցման համակարգը?"]
[null,null,null,null,null,null,null,null,null,null,null,null,null,null,null,null,null,null,null,null,null,1,0,null,null,{"$f":"IF(V93=1,2,IF(V93=2,1,IF(V93=3,0,0)))","v":2},null,null,2]
[]
[]
["Ջեռուցման համակարգի երևացող խողովակները ջերմամեկուսացված են  (չջեռուցվող սենյակներում)? (Սինթեթիկ կամ ալյումինապատ մեկուսիչներ?)"]
[]
[null,null,null,null,null,null,null,null,null,null,null,null,null,null,null,null,null,null,null,null,null,3,-1,null,null,{"$f":"IF(V98=1,1,IF(V98=2,-1,IF(V98=3,0,0)))","v":0},null,null,1]
[]
[]
["Բաժին 2. Վերականգնվող էներգիայի տեխնոլոգիաների օգտագործում"]
["Արդյոք տաք ջրամատակարարման համար օգտագործվում է արևային էներգիա?"]
[null,null,null,null,null,null,null,null,null,null,null,null,null,null,null,null,null,null,null,null,null,1,0,null,null,{"$f":"IF(V103=1,2,IF(V103=2,0,))","v":2},null,null,2]
[]
[]
["Եթե ընտրել եք \"Այո\" ապա նշեք ինչ տիպի տաքացուցիչ (կոլեկտոր) է օգտագործվում?",null,null,null,null,null,null,null,null,null,null,null,null,null,null,null,null,null,null,null,null,3,0,null,null,{"$f":"IF(V103=2,0,IF(V106=1,3,IF(V106=2,3,IF(V106=3,0,0))))","v":0},null,null,3]
[]
[]
[]
["Եթե ընտրել եք այո, նշեք կոլեկտորի մակերեսը",null,null,null,null,null,null,null,null,null,null,null,null,null,null,null,null,"մ²"]
[]
["Ֆոտովոլտաիկ պանելներ օգտագործվում է?"]
[null,null,null,null,null,null,null,null,null,null,null,null,null,null,null,null,null,null,null,null,null,1,0,null,null,{"$f":"IF(V113=1,5,IF(V113=2,0,))","v":5},null,null,5]
[]
[]
["Եթե ընտրոլ եք \"Այո\" նշեք ինչպես է օգտագործվում ֆոտովոլտաիկ պանելներից ստացված էներգիան"]
[null,null,null,null,null,null,null,null,null,null,null,null,null,null,null,null,null,null,null,null,null,3,0,null,null,{"$f":"IF(V113=2,0,IF(V117=1,1,IF(V117=2,0,IF(V117=3,0,0))))","v":0},null,null,1]
[]
[]
["Եթե ընտրել եք \"Այո\" նշեք կլանիչնեչի/պանելների մակերեսը",null,null,null,null,null,null,null,null,null,null,null,null,null,null,null,null,"մ²"]
[]
["Բաժին 3. Լուսավորում"]
["Ինչպիսի լամպեր են օգտագործվում?"]
[null,null,null,null,null,null,null,null,null,null,null,null,null,null,null,null,null,null,null,null,null,3,0,null,null,{"$f":"IF(V124=1,0,IF(V124=2,1,IF(V124=3,2,IF(V124=4,0,0))))","v":2},null,null,2]
[]
[]
[]
[]
["Բաժին 4. Կենցաղային սարքավորումներ"]
["Ներքոթվարկված սարքավորումներից որոնք են տեղադրված?"]
["(Նշեք նաև դրանց ԷԱ դասը)",null,null,null,null,null,null,null,null,null,null,null,null,null,null,null,null,null,null,null,null,null,-1,null,null,{"$f":"IF(V167=TRUE,0,ROUND(IF(AB131>0,(SUM(Y132:Y163)/AB131),0),0))","v":0},{"$f":"IF(V132=TRUE,IF(P132<=10,P134,0),0)+IF(V139=TRUE,IF(P137<=10,P139,0),0)+IF(V144=TRUE,IF(P142<=10,P144,0),0)+IF(V149=TRUE,IF(P147<=10,P149,0),0)+IF(V154=TRUE,IF(P152<=10,P154,0),0)+IF(V159=TRUE,IF(P157<=10,P159,0),0)+IF(V164=TRUE,IF(P162<=10,P164,0),0)","v":0},{"$f":"COUNTIF(V132:V164,TRUE)","v":2},2]
[null,null,null,null,null,null,null,null,null,null,null,null,null,null,null,null,null,null,null,null,null,null,null,null,{"$f":"IF(V134=TRUE,IF(V133=1,3,IF(V133=2,2,IF(V133=3,1,0))),0)","v":0}]
[null,null,null,null,null,null,null,null,null,null,null,null,null,null,null,null,null,null,null,null,null,4]
[null,null,null,null,null,null,null,null,null,null,null,null,null,null,null,null,null,null,null,null,null,true]
[]
[]
[]
[null,null,null,null,null,null,null,null,null,null,null,null,null,null,null,null,null,null,null,null,null,4,null,null,{"$f":"IF(V139=TRUE,IF(V138=1,3,IF(V138=2,2,IF(V138=3,1,0))),0)","v":0}]
[null,null,null,null,null,null,null,null,null,null,null,null,null,null,null,null,null,null,null,null,null,true]
[]
[]
[]
[null,null,null,null,null,null,null,null,null,null,null,null,null,null,null,null,null,null,null,null,null,3,null,null,{"$f":"IF(V144=TRUE,IF(V143=1,3,IF(V143=2,2,IF(V143=3,1,0))),0)","v":0}]
[]
[]
[]
[]
[null,null,null,null,null,null,null,null,null,null,null,null,null,null,null,null,null,null,null,null,null,3,null,null,{"$f":"IF(V149=TRUE,IF(V148=1,3,IF(V148=2,2,IF(V148=3,1,0))),0)","v":0}]
[]
[]
[]
[]
[null,null,null,null,null,null,null,null,null,null,null,null,null,null,null,null,null,null,null,null,null,3,null,null,{"$f":"IF(V154=TRUE,IF(V153=1,3,IF(V153=2,2,IF(V153=3,1,0))),0)","v":0}]
[]
[]
[]
[]
[null,null,null,null,null,null,null,null,null,null,null,null,null,null,null,null,null,null,null,null,null,3,null,null,{"$f":"IF(V159=TRUE,IF(V158=1,3,IF(V158=2,2,IF(V158=3,1,0))),0)","v":0}]
[]
[]
[]
[null,null,null,null,null,null,null,null,null,null,null,null,null,null,null,null,null,null,null,null,null,3]
[null,null,null,null,null,null,null,null,null,null,null,null,null,null,null,null,null,null,null,null,null,null,null,null,{"$f":"IF(V164=TRUE,IF(V163=1,3,IF(V163=2,2,IF(V163=3,1,0))),0)","v":0}]
[]
[]
[]
[null,null,null,null,null,null,null,null,null,null,null,null,null,null,null,null,null,null,null,null,null,true]
[]
[]
["Բաժին 5. Պատուհաններ և արտաքին դռներ"]
["Արդյոք  պատուհանների շրջանակները հերմետիկ են և թույլ չեն տալիս օդի արտահոսք?"]
["(Փորձեք ձեռքով, արդյոք օդի հոսանք զգացվում է թե ոչ երբ պատուհանները փակ են)"]
[null,null,null,null,null,null,null,null,null,null,null,null,null,null,null,null,null,null,null,null,null,1,0,null,null,{"$f":"IF(V173=1,2,IF(V173=2,0,))","v":2},null,null,2]
[]
[]
["Արդյոք դրսի դռների շրջանակները հերմետիկ են և թույլ չեն տալիս օդի արտահոսք?"]
["(Փորձեք ձեռքով, արդյոք օդի հոսանք զգացվում է թե ոչ երբ պատուհանները փակ են)"]
[null,null,null,null,null,null,null,null,null,null,null,null,null,null,null,null,null,null,null,null,null,2,0,null,null,{"$f":"IF(V178=1,1,IF(V178=2,0,))","v":0},null,null,1]
[]
[]
["Արդյոք պատուհաններում տեղադրված են երկշերտ ապակիներ?"]
["(Կարող եք տեսնել ապակիների երկու շերտերը պատուհանի շրջանակում)"]
[null,null,null,null,null,null,null,null,null,null,null,null,null,null,null,null,null,null,null,null,null,1,-1,null,null,{"$f":"IF(V183=1,1,IF(V183=2,-1,))","v":1},null,null,1]
[]
[]
["Ինչ նյութից են պատրաստված պատուհանների շրջանակները?"]
[null,null,null,null,null,null,null,null,null,null,null,null,null,null,null,null,null,null,null,null,null,3,-1,null,null,{"$f":"IF(V187=1,-1,IF(V187=2,0,IF(V187=3,0,IF(V187=4,0,0))))","v":0},null,null,0]
[]
[]
[]
[]
["Որքան է պատուհանների U-արժեքը?"]
["(Հարցրեք կառուցապատողին, պատրաստողին կամ նայեք պատուհանների տեղեկատվության ցանկում) "]
[null,null,null,null,null,null,null,null,null,null,null,null,null,null,null,null,null,null,null,null,null,true,0,null,null,{"$f":"IF(AND((B195>0),(B195<=2.5),(V194=FALSE)),1,0)","v":0},null,null,1]
[null,1,null,null,null,"[Վ/մ²կ]"]
[]
["Բաժին 6. Շենքի արտաքին պատեր"]
["Ինչ նյութից են պատրաստված շենքի արտաքին պատերը?"]
[null,null,null,null,null,null,null,null,null,null,null,null,null,null,null,null,null,null,null,null,null,4,0,null,null,{"$f":"IF(V199=1,0,IF(V199=2,2,IF(V199=3,0,IF(V199=4,1,0))))","v":1},null,null,2]
[]
[]
[]
[]
["Բաժին 7. Ջերմամեկուսացում"]
["Արդյոք արտաքին պատերը ջերմամեկուսացված են?"]
["(Հարցրեք կառուցապատողին)"]
[null,null,null,null,null,null,null,null,null,null,null,null,null,null,null,null,null,null,null,null,null,1,0,null,null,{"$f":"IF(V207=1,3,IF(V207=2,0,))","v":3},null,null,3]
[]
[]
["Ինչ հաստություն ունի օգտագործված ջերմամեկուսացնող նյութը? "]
["(Հարցրեք կառուցապատողին)"]
[null,null,null,null,null,null,null,null,null,null,null,null,null,null,null,null,null,null,null,null,null,true,0,null,null,{"$f":"IF(AND((B213>=6),(V207=1),(V212=FALSE)),2,0)","v":0},null,null,2]
[null,15,null,null,null,"[սմ]"]
[]
["Ինչպիսի ջերմամեկուսիչ նյութ է օգտագործված?"]
[]
[null,null,null,null,null,null,null,null,null,null,null,null,null,null,null,null,null,null,null,null,null,7]
[]
[]
[]
[]
[null,null,null,null,null,null,null,null,null,null,null,null,null,null,null,null,null,null,null,null,null,2,0,null,null,{"$f":"IF(V222=1,3,IF(V222=2,0,))","v":0},null,null,3]
["Արդյոք տանիքը և ձեղնահարկը ջերմամեկուսացված են?"]
["(Հարցրեք կառուցապատողին)"]
[]
[]
[]
["Ինչ հաստություն ունի տանիքի և վերնահարկի համար օգտագործված ջերմամեկուսացնող նյութը? "]
["(Հարցրեք կառուցապատողին)"]
[null,null,null,null,null,null,null,null,null,null,null,null,null,null,null,null,null,null,null,null,null,true,0,null,null,{"$f":"IF(AND((B231>=6),(V222=1),(V230=FALSE)),2,0)","v":0},null,null,2]
[null,40,null,null,null,"[սմ]"]
[null,null,null,null,null,null,null,null,null,null,null,null,null,null,null,null,null,null,null,null,null,null,null,null,null,null,null,"Maximale Punkte"]
["Բնակարանը/առանձնատունը Էներգաարդյունավետ է?",null,null,null,null,null,null,null,null,null,null,null,null,null,{"$f":"IF(Z233>=21,\"ԱՅՈ\",\"ՈՉ\")","v":"ԱՅՈ"},null,null,null,null,null,null,null,{"$f":"SUM(W17:W226)","v":-7},null,null,{"$f":"SUM(Z1:Z232)","v":36},null,null,{"$f":"SUM(AC17:AC232)","v":51}]

{"sheet":"Description","index":3,"n_rows":60,"n_cols":2,"rows_kept":60,"cut":false,"hidden":false,"merged":[[16,0,16,1],[4,0,4,1],[14,0,14,1],[0,0,0,1],[1,0,1,1],[7,0,7,1],[10,0,10,1]]}
["Ձեռք բերվող բնկարանի/առանձնատան ԷԱ գնահատման հարցաթերթիկ "]
["Բնակարանային ֆինանսավորման ծրագիր, 4-րդ փուլ"]
[]
["Հարցաթերթիկի նպատակը"]
["Սույն հարցաթերթիկի նպատակն է ստուգել, արդյոք Ծրագրի ֆինանսավորմամբ ձեռք բերվող բնակարանը/առանձնատունը բավարարում է Ծրագրով սահմանված էներգաարդյունավետության չափանիշներին, թե ոչ:  Դրական արդյունքի դեպքում ձեռք բերվող բնակարանը/առանձնատունը կարող է ֆինանսավորվել ԷԱ բնակարանի ձեռք բերման վարկի միջոցով: Հակառակ դեպքում, ֆինանսավորումը կարող է իրականացվել ավանդական բնակարանային վարկի միջոցով: Հարցաթերթիկը լրացվում է շինարարության ծախսեչի նախահաշվի հիման վրա: "]
[]
["Աշխատանքի սկիզբ"]
["Հարցաթերթիկի լրացման համար սեղմեք \"Start Filling the Checklist\" կոճակը: Բացված պատուհանի համապատասխան դաշտերում լրացրեք ընդհանուր տեղեկություններ դիմորդի և ձեռք բերվող գույքի վերաբերյալ: Սեղմեք \"Reset\" կոճակը եթե լրացված տեղեկությունները սխալ են և պետք է ճշգրտվեն: \"Cancel\" կոճակը փակում է պատուհանը: Լրացված տեղեկությունները այս դեպքում չեն պահպանվում: Պահանջվող տեղեկությունները լրացնելուց հետո սեղմեք  \"Save\"կոճակը: Բացվող \"Save as\" պատուհանի մջոցով հիշեք ֆայլը և սկսեք լրացնել հարցաթեթիկը:  "]
[]
["Ընդհանուր ցուցում"]
["Եթե որևէ հարցի պատասխանը չի կարող հստակ տրվել, անհրաժեշտ է ընտրել “Չգիտեմ” պատասխանը: Հարցաշարը պետք է լրացվի ձեռք բերվող բնակարանի/առանձնատան առկա իրավիճակի հիման վրա: Կենցաղային սարքավորումներին վերաբերող հարցերը լրացվում են միայն այն դեպքում, երբ դրանք ևս վաճառվում են բնակարանի/առանձնատան հետ միասին: Եթե ձեռք բերման ֆինանսավորումից հետո պարզվի, որ հարցաթերթիկում ներկայացված պատասխանները չեն համապատասխանում իրականությանը, ապա տվյալ վարկը այլևս չի հանդիսանա Որակավորված վարկ:"]
[]
["Հարց","Ուղղեցույց"]
["Ինչպիսի էներգախնոյողության բարելավման միջոցառումներ են իրականացվել վերջին 5 տարվա ընթացքում? ","Էներգախնայողության աշխատանքները ներառում են - 1 պատուհանների  փոխում/տեղադրում, 2. արտաքին դռների փոխում, 3. նոր ջեռուցման համակարգի տեղադրում, 4. նոր, A+ և բարձր դաս ունեցող նոր օդաորակիչի տեղադրում, 5. էլեկտրական լամպերի փոխարինում  ԷԱ լամպերով, 6. արտաքին պատերի ջերմամեկուսացում, 7. Այլ:  Ընտրեք բոլոր այն պատասխանները, որոնք համապատասխանում են վերջին հինգ տարվա ընթացքում կատարված միջոցառումներին: Եթե ընտրել եք Այլ պատասխանը, նշեք, ինչ միջոցառումներ են իրականացվել: "]
["Եթե վերջին հինգ տարվա ընթացքում իրականացվել են էներգախնայողության միջոցառումներ (պատուհան, Ջեռուցման համակարգ, և այլն), ապա ընտրեք համապատասխան վանդակները: Նշեք բոլոր այն աշխատանքները, որոնք կատարվել են: "]
[]
["Հարցաթերթիկի լրացման ուղղեցույց"]
["Բաժին 1. Ջեռուցում և տաք ջրամատակարարում"]
["Հարց","Ուղղեցույց"]
["Արդյոք ջեռուցման և տաք ջրամատակարարման համար օգտագործվում է նույն համակարգը?","Ընտրեք  “Այո” պատասխանը, եթե բնակարանի/տան ջեռուցմումը և կենցաղային տաք ջուրը ստացվում է ջեռուցման մեկ աղբյուրից: Եթե պատասխանը “Ոչ“ է և երկու տարբեր համակարգ է օգտագործվում, ապա լրացրեք անհրաժեշտ տեղեկությունները առանձին համակարգերի վերաբերյալ:"]
["Ջեռուցման համակարգի ինչպիսի տիպ է օգտագործվում?","Լրացրեք բնակարանում առկա ջեռուցման կաթսայի տիպը, տարիքը  և տեսակը: Եթե առկա է մեկից ավելի տիպի կաթսա, ապա լրացրեք տեղեկություններ յուրաքանչյուրի համար: ՏԿաթսայի արտադրության տարեթիվը և տեսակը ճշտելու համար ստուգեք կաթսայի պիտակը կամ տեխնիկական բնութագրերը: Պիտակը սովորաբար փակցված է կաթսայի հետևի մասում: Պիտակի կամ տեխնիակական բնութագրերի բացակայության դեպքում հնարավոր է ստանալ անհրաժեշտ տեղեկատվությունը համացանցից` մուտքագրելով արտադրողի անունը և կաթսայի մոդելը:Եթե չեք կարող պարզել կաթսայի տեսակը ընտրեք “Չգիտեմ” պատասխանը:"]
["Ինչպես է կառավարվում ջեռուցման համակարգը?","Ընտրեք ջեռուցման համակարգի կառավարման տեսակը (տեսակները ներկայացված են Բառարանում, Glossary էջում): Եթե տարբեր կառավարման համակարգեր են օգտագործվում, ապա ընտրեք ավելի հաճախ օգտագործվողը: "]
["Ջեռուցման համակարգի երևացող խողովակները չջեռուցվող սենյակներում ջերմամեկուսացվելու են? (Սինթեթիկ կամ ալյումինապատ մեկուսիչներ?)","Ստուգեք չջեռուցվող սենյակներում/տարածքներում երևացող խողովակների առկայությունը:  Կախված ջերմամեկուսացման առկայությունից ընտրեք համապատասխան տարբերակը։"]
[]
["Բաժին 2. Վերականգնվող էներգիայի տեխնոլոգիաների օգտագործում"]
["Հարց","Ուղղեցույց"]
["Արդյոք տաք ջրամատակարարման համար օգտագործվում է արևային էներգիա?","Ընտրեք Այո, եթե տանը/բնակարանում կա տեղադրված արևային ջեռուցման և/կամ ջրի տաքացման համակարգ:"]
["Եթե ընտրել եք \"Այո\" ապա նշեք ինչ տիպի տաքացուցիչ (կոլեկտոր) է օգտագործվում?","ղ Ընտրեք արևային ջրատաքացուցիչի տիպը (տեսակները ներկայացված են Բառարանում, Glossary էջում): Լրացրեք Ձեր տան արևային կոլեկտորի համապատասխան տեսակը: Եթե օգտագործում եք մի քանի տեսակի կոլեկտորներ, ապա ընտրեք ամենահաճախ օգտագործվողը: "]
["Եթե ընտրել եք այո, նշեք կոլեկտորի մակերեսը","Լրացրեք բոլոր ջրատաքացուցիչների կոլեկտորների մակերեսը ք.մ.:"]
["Ֆոտովոլտաիկ պանելներ օգտագործվում է?","Ընտրեք Այո, եթե արևային էներգիայից էլեկտրական էներգիա ստանալու համար տեղադրված են ֆոտովոլտաիկ պանելներ:"]
["Եթե ընտրոլ եք \"Այո\" նշեք ինչպես է օգտագործվում ֆոտովոլտաիկ պանելներից ստացված էներգիան","Ընտրեք ձեր տանը արտադրած էլեկտրաէներգիայի օգտագործման տարբերակը: Սեփական կարիքներ` ամբողջ արտադրած էլ. Էներգիան օգտագործվում է ձեր տանը կամ կուտակվում մարտկոցների համակարգում: Առաքում էլ. ցանց` ամբողջ արտադրած էլեկտրաէներգիան առաքվում է Հայաստանի Էլեկտրական Ցանցերին: Ավելցուկի առաքում ` այն ժամանակահատվածում երբ էլեկտրաէներգիան սպառվում է տանը, արտադրած էլեկտրաէներգիան առաքվում է տուն: Եթե էլեկտրաէներգիան արտադրում է, և ներկա պահին չկա դրա պահանջ, առաքումը իրականացվում Հայաստանի Էլեկտրական Ցանցերին "]
["Եթե ընտրել եք \"Այո\" նշեք կլանիչնեչի/պանելների մակերեսը","Մուտքագրեք ձեր տանը տեղադրած բոլոր ֆոտովոլտաիկ կոլեկտորների ընդհանուր մակերեսը [մ²]"]
[]
["Բաժին 3. Լուսավորություն"]
["Հարց","Ուղղեցույց"]
["Ինչպիսի լամպեր են օգտագործվում?","Մուտքագրեք տանը ամենահաճախ օգտագործվող լամպերի տեսակը: եթե ներկա պահին չկա տեղադրված լուսավորության համակարգ ընտրեք “Այլ/չգիտեմ” տարբերակը:"]
[]
["Բաժին 4. Կենցաղային սարքավորումներ"]
["Հարց","Ուղղեցույց"]
["Ներքոթվարկված սարքավորումներից որոնք են տեղադրված? (Նշեք նաև դրանց ԷԱ դասը)","Ընտրեք բոլոր այն սարքավորումները, որոնք առկա են և վաճառվում են բնակարանի/տան հետ:  Նշեք նաև դրանց ԷԱ դասը: Եթե առկա են տարբեր դասի միևնույն սարքավորումներ, ապա ընտրեք առավել ԷԱ դասը:"]
[]
["Բաժին 5. Պատուհաններ և արտաքին դռներ"]
["Հարց","Ուղղեցույց"]
["Արդյոք  պատուհանների շրջանակները հերմետիկ են և թույլ չեն տալիս դրսի օդի ներհոսք?","Ստուգեք պատուհանի շրջանակի հերմետիկությունը և օդի ներհոսքի բացակայությունը` ձեռքը մոտեցնելով փակ պատուհանին: Ընտրեք համապատասխան պատասխանը:"]
["Արդյոք  դրսի դռների շրջանակները հերմետիկ են և թույլ չեն տալիս դրսի օդի ներհոսք?","Ստուգեք դռնի շրջանակի հերմետիկությունը և օդի ներհոսքի բացակայությունը` ձեռքը մոտեցնելով փակ պատուհանին: Ընտրեք համապատասխան պատասխանը:"]
["Արդյոք պատուհաններում տեղադրված են երկշերտ ապակիներ?","Ստուգեք պատուահանի շրջանակում ապակու շերտերի առկայությունը և ընտրեք համապատասխան:Ընտրեք Այո պատասխանը, եթե շերտերի քանակը 2 և ավելի է:"]
["Ինչ նյութից են պատրաստված պատուհանների շրջանակները?","Նշեք պատուհանների շրջանակների նյութը: Եթե դա հնարավոր չէ պարզել, նշեք “Այլ” տարբերակը:"]
["Որքան է պատուհանների ջերմափոխանցման U-արժեքը?","U-արժեքը/U-գործակիցը բերված է պատուհանի տեխնիական բնութագրում: Տեխնիական բնութագրի բացակայության դեպքում, կարող եք հարցում ուղարկել արտադրողին: Եթե ոչ մի տեղեկություն հայտնի չէ, ապա ընտրեք “Չգիտեմ” տարբերակը:"]
[]
["Բաժին 6. Շենքի արտաքին պատեր"]
["Հարց","Ուղղեցույց"]
["Ինչ նյութից են պատրաստված շենքի արտաքին պատերը?","Նշեք արտաքին պատերի կառուցման համար օգտագործված հիմնական նյութը:  Եթե դա հնարավոր չէ պարզել, ընտրեք “Այլ” տարբերակը:"]
[]
["Բաժին 7. Ջերմամեկուսացում"]
["Հարց","Ուղղեցույց"]
["Արդյոք արտաքին պատերը ջերմամեկուսացված են?","Ճշտեք կառուցապատողից արտաքին պատերի ջերմամեկուսացումը և ընտրեք համապատասխան պատասխանը:"]
["Ինչ հաստություն ունի օգտագործված ջերմամեկուսացնող նյութը? ","Ճշտեք կառուցապատողից շենքի արտաքին պատերի ջերմամեկուսացման հաստություն [սմ]: Տեղեկությունների բացակայության դեպքում ընտրեք “Չգիտեմ” տարբերակը:"]
["Ինչպիսի ջերմամեկուսիչ նյութ է օգտագործված?","Ճշտեք կառուցապատողից օգտագործված ջերմամեկուսացման տեսակը: Տեղեկությունների բացակայության դեպքում ընտրեք “Չգիտեմ” տարբերակը:"]
["Արդյոք տանիքը և ձեղնահարկը ջերմամեկուսացված են?","Ճշտեք կառուցապատողից շենքի տանիքի և ձեղնահարկի ջերմամեկուսացումը և ընտրեք համապատասխան պատասխանը:"]
["Ինչ հաստություն ունի տանիքի և ձեղնահարկի համար օգտագործված ջերմամեկուսացնող նյութը? ","Ճշտեք կառուցապատողից շենքի տանիքի և ձեղնահարկի ջերմամեկուսացման հաստությունը [սմ]: Տեղեկությունների բացակայության դեպքում ընտրեք “Չգիտեմ” տարբերակը:"]

{"sheet":"Glossary","index":4,"n_rows":89,"n_cols":1,"rows_kept":89,"cut":false,"hidden":false,"merged":[]}
["Ծրագրավորվող թերմոստատ"]
["Ծրագրավորվող թերմոստատները նախատեսված են ջերմաստիճանի կարգավորման համար համաձայն ծրագրավորված կարգավորումների, որոնք միանում են օրվա տարբեր ժամերին: Ծրագրավորվող թերմոստատները կարող են նաև կոչվել ժամային:"]
[]
[]
[]
[]
[]
[]
[]
[]
[]
[]
[]
["Թերմոստատիկ փականներ"]
["Ռադիատորիների թերմոստատիկ փականը (ՌԹՓ) ինքնակառավարվող փական է, որը տեղադրվում ջեռուցման համակարգի ռադիատորին և որի նպատակն է սենյակում ջերմաստիճանի կառավարումը` դեպի ռադիատոր տաք ջրի հոսքի փոփոխմամբ: Դասական ՌԹՓ-ն բաղկացած է փակիչից, որը ընդլայնվում է կամ նեղանում է կախված շրջակա միջավայրի ջերմաստիճանից։ Փակիչը միացված է գնդասեղին, որը իր հերթին միացված է փականին։ Փականը աստիճանաբար փակվում է շրջակա միջավայրի ջերմաստիճանի բարձրացմանը զուգահեռ՝ սահմանափակելով ռադիատոր մուտք գործող տաք ջրի քանակը։ Սա հնարավորություն է տալիս յուրաքանչյուր սենյակի համար դնել առավելագույն ջերմաստիճան։"]
[]
[]
[]
[]
[]
[]
[]
[]
[]
[]
[]
[]
[]
[]
["Հարթ կոլեկտոր"]
["Հարթ արևային կոլեկտորները բաղկացած են հարթ մուգ գույնի կլանիչից, թափանցիկ ծածկից, որը նվազեցնում է ջերմության կորուստները, միջանկյալ հեղուկից (օդ, ջուր կամ անտիֆրիզ), որը կլանիչից վերցնում է ջերմությունը և ջերմամեկուսացնող հետնամասից։ Կլանիչը բաղկացած է բարակ կլանիչ շերտից (կազմված ջերմակայուն պոլիմերներից, ալյումինից, պողպատից կամ պղինձից, որը պատվում է մուգ կամ ընտրովի ծածկույթով), որի հետևում դրվում է ցանց կամ խողովակավոր գալար դրված ջերմամեկուսացված պատյանի մեջ ապակե կամ պոլիկարբոնատից ծածկով։ Ջրով աշխատող կոլեկտորներում, հեղուկը սովորաբար անցնում է խողովակների միջով՝ տեղափոխելով ջերմությունը կլանիչից դեպի ջերմամեկուսացված ջրի բաք։ Սա կարող է տեղի ունենալ ուղղակի կամ ջերմափոխանակիչի միջոցով։"]
[]
[]
[]
[]
[]
[]
[]
[]
[]
[]
["Խողովոկային կոլեկտոր"]
["Վակումային արևային ջրատաքացուցիչները բաղկացած են մի շարք ապակյա վակումային խողովակներից, որոնցից յուրաքանչյուրը կազմված է կլանիչ շերտից, որը կցված է արևային խողովակին։ Ջերմությունը փոխանցվում է միջանկյալ հեղուկին (ջուր կամ անտիֆրիզ, սովորաբար պրոպիլեն գլիկոլ), որը ուղղվում է դեպի  ջերմափոխանակիչ։ Ջերմափոխանակիչը ջերմամեկուսացված է և ծածկված է պաշտպանիչ շերտով մետաղական կամ պլաստիկ պատյանի մեջ։ "]
[]
[]
[]
[]
[]
[]
[]
[]
["Ջրավազանի արևային կլանիչներ"]
["Ջրավազանի արևային կլանիչները սովորաբար սև պլաստիկից շերտեր կամ խողովակներ են, որոնք օգտագործվում են լողավազանի ջրի տաքացման համար։ Ի տարբերություն հարթ արևային կոլեկտորների կամ վակումային կոլեկտորների, ջերմամեկուսացում և թափանցիկ ծածկեր հարկավոր չեն։ Ջերմաստիճանի կայութնության պահանջները շատ ավելի ցածր են քան արևային ջրատաքացուցիչներում, քանի որ առկա է համեմատաբար ցածր ջերմաստիճան։"]
[]
[]
[]
[]
[]
[]
[]
[]
[]
[]
["Լամպեր"]
["Շիկացման լամպի դեպքում էլեկտրական հոսանքը ճառագայթիչով անցնելիս պարույրը տաքացնում է բարձր ջերմաստիճանի, և լամպը տեսանելի լույս է արձակում։ Շիկացող մարմնի օքսիդացումը կանխելու համար ապակյա կամ կվարցային հիմքով անոթը լցվում է իներտ գազով կամ թթվածինը հեռացվում է։ Հալոգենային լամպի դեպքում շիկացող մարմնի գոլորշացումը կանխվում է քիմիական գործընթացի միջոցով, ինչը երկարացնում է լամպի ծառայության ժամկետը։ Լամպը էլեկտրական հոսանք է ստանում միջանցիկ մասնիկների կամ ապակու մեջ ներկառուցված լարերի միջոցով։ Լամպերի մեծ մասը օգտագործվում են վարդակներում, ինչը տալիս է մեխանիկական հենարան և էլեկտրական միացումներ։"]
[]
[]
[]
[]
[]
[]
[]
[]
[]
["Հալոգենային լամպեր"]
["Հալոգենային լամպերը, որոնք հայտնի են նաև որպես վոլֆրամ հալոգենային, կվարց-հալոգենային կամ կվարց-յոդային լամպեր, շիկացնման լամպեր են, որոնք պարունակում են փոքր քանակությամբ հալոգեն, օրինակ` յոդ կամ բրոմ: Հալոգենային գազերի և վոլֆրամային շիկացման թելի համակցությունը առաջացնում է հալոգենային ցիկլի քիմիական ռեակցիա , որի արդյունքում գոլորշիացած վոլֆրամը վերադարձվում է շիկացման լամպին, ինչի արդյունքում ավելանում է ծառայության ժամկետը և պահպանվում է լամպի պարզությունը: Հետևաբար, հալոգենային լամպերը կարող են շահագործվել բարձր ջերմաստիճանային պայմաններում և ունենալ ավելի բարձր լուսատվություն: Հալոգենային լամպերի փոքր չափերը թույլ են տալիս դրանց օգտագործումը կոմպակտ օպտիկական համակարգերում լուսարձակներում:"]
[]
[]
[]
[]
[]
[]
[]
[]
[]
[]
["ԼԵԴ լամպեր"]
["ԼԵԴ լամպերը իրենցից ներկայացնում են լուսային դիոդներ, որոնք ներկառուցված են լամպերի մեջ: ԼԵԴ լամպերի շահագործման ժամկետը մի քանի անգամ գերազանցում է շիկացման լամպերին, իսկ արդյունավետությունը զգալիորեն բարձր է ֆլորեսցենտ լամպերից: Ներկայումս որոշ արտադրողներ արտադրում են ԼԵԴ լամպեր 300 լյումեն/վտ լուսատվությամբ:"]
[" "]

{"sheet":"Print_Version","index":5,"n_rows":230,"n_cols":19,"rows_kept":230,"cut":false,"hidden":false,"merged":[[72,12,72,13],[51,11,51,13],[61,11,61,13],[40,0,40,18],[47,0,50,18],[229,1,229,4],[135,8,135,11],[137,0,137,18],[144,0,144,18],[166,0,166,18],[190,1,190,4],[156,9,156,12],[158,9,158,12],[160,9,160,12],[148,9,148,12],[150,9,150,12],[152,9,152,12],[154,9,154,12],[167,0,167,13],[172,0,172,13],[26,15,26,16],[15,12,15,18],[192,0,192,18],[199,0,199,18],[208,1,208,4],[82,12,82,14],[84,12,84,14],[86,3,86,18],[92,2,92,18],[104,0,105,18],[109,0,109,18],[120,7,120,10],[18,7,18,17],[34,2,34,18],[36,2,36,18],[38,2,38,18],[11,6,11,18],[24,8,24,11],[0,0,0,18],[1,0,1,18],[3,6,3,18],[5,6,5,18],[7,6,7,18],[9,6,9,18],[13,0,13,18],[20,13,20,17],[22,8,22,11]]}
["Ձեռք բերվող բնակարանի/տան ԷԱ գնահատման հարցաթերթիկ"]
["Անձնական տեղեկություններ"]
[]
["Դիմորդի անուն, ազգանուն"]
[]
["Բնակության/գրանցման հասցե"]
[]
["Քաղաք/բնակավայր"]
[]
["Էլ փոստի հասցե"]
[]
["Հեռախոս"]
[]
["Ընդհանուր տեղեկություններ ֆինանսավորվող գույքի վերաբերյալ"]
[]
["Բնակելի անշարժ գույքի տեսակը (բնակարան, առանձնատուն)"]
[]
[]
["Անշարժ գույքի հասցեն"]
[]
["Անշարժ գույքի գտնվելու վայրւը (քաղաք/բնակավայր)"]
[]
["Անշարժ գույքի ընդհանուր մակերեսը",null,null,null,null,null,null,null,null,null,null,null,"ք. մ."]
[]
["Անշարժ գույքի կառուցման ժամկետը",null,null,null,null,null,null,null,null,null,null,null,"տարի"]
[]
["Տարվա ընթացքում բնակարանում/տանը բնակվող անձանց միջին քանակաը",null,null,null,null,null,null,null,null,null,null,null,null,null,null,null,null,"Persons"]
[]
["Ինչպիսի էներգախնոյողության բարելավման միջոցառումներ են իրականացվել վերջին 5 տարվա ընթացքում? "]
[]
["1. Պատուհաններ",null,null,null,"2. Ջեռուցման համակարգ",null,null,null,null,null,null,"3. Դռներ"]
[]
["4. Օդավորակիչ",null,null,null,"5. Լուսավորություն",null,null,null,null,null,null,"6. Պատերի ջերմամեկուսացում"]
[]
["7. Այլ (նշել)"]
[]
[]
[]
[]
[]
["Բաժին 1. Ջեռուցում և տաք ջրամատակարարում"]
["Արդյոք ջեռուցման և տաք ջրամատակարարման համար օգտագործվում է նույն համակարգը?"]
[]
["1. Այո",null,null,null,null,null,null,"2. Ոչ"]
[]
["Ջեռուցման համակարգի ինչպիսի տիպ եք օգտագործում?"]
["(Եթե օգտգործվում են տարբեր տիպ համակարգեր, նշեք բոլորը)"]
["Կաթսայի արտադրության տարեթիվը և տեսակը ճշտելու համար ստուգեք կաթսայի պիտակը կամ տեխնիկական բնութագրերը: Պիտակը սովորաբար փակցված է կաթսայի հետևի մասում: Պիտակի կամ տեխնիակական բնութագրերի բացակայության դեպքում հնարավոր է ստանալ անհրաժեշտ տեղեկատվությունը համացանցից` մուտքագրելով արտադրողի անունը և կաթսայի մոդելը:ան մոդելի տվյալների հիման վրա: "]
[]
[]
[]
["1. Գազի կաթսա",null,null,null,null," Այո",null,"Կաթսայի տարիքը",null,null,null,null,null,null,"տարի",null,null,"Ոչ"]
[]
[" - Կոնդենսացիոն կաթսա (ՕԳԳ 93%-ից բարձր)"]
[]
[" - Կոնդենսացիոնին մոտ կաթսա       (ՕԳԳ 90 - 93 %)"]
[]
[" - Ոչ կոնդենսացիոն կաթսա                (ՕԳԳ 87 %-ից ցածր)"]
[]
[" - Այլ/Չգիտեմ"]
[]
["2. Յուղային կաթսա",null,null,null,null," Այո",null,"Կաթսայի տարիքը",null,null,null,null,null,null,"տարի",null,null,"Ոչ"]
[]
[" - Կոնդենսացիոն կաթսա (ՕԳԳ 93%-ից բարձր)"]
[]
[" - Կոնդենսացիոնին մոտ կաթսա       (ՕԳԳ 90 - 93 %)"]
[]
[" - Ոչ կոնդենսացիոն կաթսա                (ՕԳԳ 87 %-ից ցածր)"]
[]
[" - Այլ/Չգիտեմ"]
[]
[]
["3. Գազային օդատաքացուցիչ",null,null,null,null,null," Այո",null,"Օդ-ցիչի տարիքը",null,null,null,null,null,"տարի",null,null,"Ոչ"]
[]
[" - Կոնդենսացիոն օդատաքացուցիչ (ՕԳԳ 93%-ից բարձր)"]
[]
[" - Կոնդենսացիոնին մոտ օդատաքացուցիչ (ՕԳԳ 90 - 93 %)"]
[]
[" - Ոչ կոնդենսացիոն օդատաքացուցիչ (ՕԳԳ 87 %-ից ցածր)"]
[]
[" - Այլ/Չգիտեմ"]
[]
["4. Էլեկտրական օդատաքացուցիչ",null,null,null,null,null," Այո",null,"Օդ-ցիչի տարիքը",null,null,null,null,null,null,"տարի",null,null,"Ոչ"]
[]
["5. Ջերմային պոմպ",null,null,null,null,null," Այո",null,"Պոմպի տարիքը",null,null,null,null,null,null,"տարի",null,null,"Ոչ"]
[]
["Պոմպի տեսակը "]
[]
["6. Կենտրոնացված ջեռուցման համակարգ",null,null,null,null,null,null,null,null,null," Այո",null,null,null,null,null,"Ոչ"]
[]
["7. Արևային տաքացուցիչ",null,null,null,null,null,null,null,null,null," Այո",null,null,null,null,null,"Ոչ"]
[]
["8. Այլ"]
[]
[]
["Ինչպես է կառավարվում ջեռուցման համակարգը?"]
[]
["1. Ծրագրավորվող թերմոստատ"]
[]
["2. Թերմոստատիկ փականներ"]
[]
["3. Հասարակ փականներ"]
[]
[]
["Ջեռուցման համակարգի երևացող խողովակները ջերմամեկուսացված են  (չջեռուցվող սենյակներում)? "]
[]
[]
["1. Ամբողջովին",null,null,null,null,null,"2. Ոչ",null,null,null,null,"3. Մասամբ/չգիտեմ"]
[]
["Բաժին 2. Վերականգնվող էներգիայի տեխնոլոգիաների օգտագործում"]
["Արևային ջրատաքացուցիչներ առկա են?"]
[]
[null,null,"1. Այո",null,null,null,null,null,null,"2. Ոչ"]
[]
["Եթե Այո, ապա  ինչ տիպի տաքացուցիչ է օգտագործվում"]
[]
["1. Հարթ կոլեկտոր",null,null,null,null,"2. Խողովակաձև կոլեկտոր",null,null,null,null,null,null,"3. Ջրավազանի կլանիչ"]
[]
[]
[]
["Կոլեկտորի մակերեսը",null,null,null,null,null,null,null,null,null,null,"մ²"]
[]
[]
["Ֆոտովոլտաիկ պանելներ օգտագործվում է?"]
[]
[null,"1. Այո",null,null,null,null,null,null,"2. Ոչ"]
[]
["Եթե Այո, ապա ինչպես է օգտագործվում ֆոտովոլտաիկ պանելներից ստացված էներգիան"]
[]
["1. Սեփական կարիքների համար"]
[]
["2. Ամբողջությամբ վաճառվում է Էլ ցանցերին"]
[]
["3. Վաճառվում է ավելցուկը"]
[]
["Նշեք կլանիչնեչի/պանելների մակերեսը",null,null,null,null,null,null,null,null,null,null,null,"մ²"]
[]
["Բաժին 3. Լուսավորում"]
["Ինչպիսի լամպեր են օգտագործվում?"]
[]
["1. Սովորական շիկացման լամպեր",null,null,null,null,null,null,null,"2. Հալոգեն լամպեր"]
[]
["3. LED լամպեր",null,null,null,null,null,null,null,"4. Այլ/Չգիտեմ"]
[]
["Բաժին 4. Կենցաղային սարքավորումներ"]
["Ներքոթվարկված սարքավորումներից որոնք են տեղադրված?"]
["(Նշեք նաև դրանց ԷԱ դասը)"]
[]
["1. Սառնարան",null,null,null,null,null,null,null,null,null,null,null,null,"ԷԱ Դասը"]
[]
["2. Սառեցման խցիկ",null,null,null,null,null,null,null,null,null,null,null,null,"ԷԱ Դասը"]
[]
["3. Սառնարան սառեցման խցիկով",null,null,null,null,null,null,null,null,null,null,null,null,"ԷԱ Դասը"]
[]
["4. Օդավորակիչ",null,null,null,null,null,null,null,null,null,null,null,null,"ԷԱ Դասը"]
[]
["5. Լվացքի մեքենա",null,null,null,null,null,null,null,null,null,null,null,null,"ԷԱ Դասը"]
[]
["6. Չորանոց",null,null,null,null,null,null,null,null,null,null,null,null,"ԷԱ Դասը"]
[]
["7. Վառարան",null,null,null,null,null,null,null,null,null,null,null,null,"ԷԱ Դասը"]
[]
["8. Կենցաղային սարքավորումներ տեղադրված չեն"]
[]
[]
[]
["Բաժին 5. Պատուհաններ և արտաքին դռներ"]
["Արդյոք  պատուհանների շրջանակները հերմետիկ են և թույլ չեն տալիս դրսի օդի ներհոսք?"]
["(Փորձեք ձեռքով, արդյոք օդի հոսանք զգացվում է թե ոչ երբ պատուհանները փակ են)"]
[]
[null,null,"1. Այո",null,null,null,null,null,"2. Ոչ"]
[]
["Արդյոք  դրսի դռների շրջանակները հերմետիկ են և թույլ չեն տալիս դրսի օդի ներհոսք?"]
["(Փորձեք ձեռքով, արդյոք օդի հոսանք զգացվում է թե ոչ երբ պատուհանները փակ են)"]
[]
[null,null,"1. Այո",null,null,null,null,null,"2. Ոչ"]
[]
["Արդյոք պատուհաններում տեղադրված են երկշերտ ապակիներ?"]
["(Կարող եք տեսնել ապակիների երկու շերտերը պատուհանի շրջանակում)"]
[]
[null,null,"1. Այո",null,null,null,null,null,"2. Ոչ"]
[]
["Ինչ նյութից են պատրաստված պատուհանների շրջանակները?"]
[]
[null,"1. Փայտ",null,null,null,"2. Պլաստիկ PVC",null,null,null,null,"3. Ալյումինե",null,null,null,null,"4. Այլ"]
[]
[]
["Որքան է պատուհանների ջերմափոխանցման U-արժեքը?"]
["(Հարցրեք կառուցապատողին, պատրաստողին կամ նայեք պատուհանների տեղեկատվության ցանկում) "]
[]
[null,null,null,null,null,"[Վ/մ²կ]",null,null,"Չգիտեմ"]
[]
["Բաժին 6. Շենքի արտաքին պատեր"]
["Ինչ նյութից են պատրաստված շենքի արտաքին պատերը?"]
[]
[null,"1. Միաձույլ բետոնե",null,null,null,null,null,null,null,null,"2. Քար (տուֆ, բազալտ)"]
[]
["3. Բետոնե պանելներ",null,null,null,null,null,null,null,null,null,"4. Այլ/Չգիտեմ"]
[]
["Բաժին 7. Ջերմամեկուսացում"]
["Արդյոք արտաքին պատերը ջերմամեկուսացված են?"]
["(Հարցրեք կառուցապատողին)"]
[]
[null,null,"1. Այո",null,null,null,null,null,"2. Ոչ"]
[]
["Ինչ հաստություն ունի օգտագործված ջերմամեկուսացնող նյութը? "]
["(Հարցրեք կառուցապատողին)"]
[]
[null,null,null,null,null,"[սմ]",null,null,"Չգիտեմ"]
[]
["Ինչպիսի ջերմամեկուսիչ նյութ է օգտագործված?"]
[]
[null,"1. Ապակե մանրաթել",null,null,null,null,"2. Փրփրապոլիստերոլ",null,null,null,null,null,"3. Պոլիստերոլ"]
[]
[]
[null,"4. Ապակե բամբակ",null,null,null,null,"5. Հանքային բամբակ",null,null,null,null,null,"6. Պեռլիտ"]
[]
[]
[null,"7. Այլ"]
[]
[]
["Արդյոք տանիքը և ձեղնահարկը ջերմամեկուսացված են?"]
["(Հարցրեք կառուցապատողին)"]
[]
[null,null,"1. Այո",null,null,null,null,null,"2. Ոչ"]
[]
["Ինչ հաստություն ունի տանիքի և ձեղնահարկի ջերմամեկուսացնող նյութը? "]
["(Հարցրեք կառուցապատողին)"]
[]
[null,null,null,null,null,"[սմ]",null,null,"Չգիտեմ"]